[Event "*** Titled Tuesday Blitz"]
[Site "Chess.com"]
[Date "2019.10.01"]
[Round "3"]
[White "yuki_chess123"]
[Black "13MiRacLe"]
[Result "1-0"]
[WhiteElo "2184"]
[BlackElo "2503"]
[TimeControl "180+2"]
[EndTime "13:39:45 PDT"]
[Termination "yuki_chess123 won by resignation"]

1. Nf3 {[%clk 0:03:01.9]} 1... Nf6 {[%clk 0:03:00.9]} 2. g3 {[%clk 0:03:02.3]}
2... g6 {[%clk 0:03:02.3]} 3. Bg2 {[%clk 0:03:03.1]} 3... Bg7 {[%clk 0:03:04]}
4. c4 {[%clk 0:03:04.2]} 4... O-O {[%clk 0:03:05]} 5. Nc3 {[%clk 0:03:05.3]}
5... d5 {[%clk 0:03:05.5]} 6. cxd5 {[%clk 0:03:05.6]} 6... Nxd5 {[%clk
0:03:07.4]} 7. O-O {[%clk 0:03:05]} 7... Nb6 {[%clk 0:03:08.5]} 8. d3 {[%clk
0:03:03.3]} 8... Nc6 {[%clk 0:03:09.3]} 9. Bd2 {[%clk 0:03:03.9]} 9... e5 {[%clk
0:03:09.5]} 10. Rc1 {[%clk 0:03:03.8]} 10... Re8 {[%clk 0:03:09]} 11. a3 {[%clk
0:03:04.9]} 11... Nd4 {[%clk 0:03:06.7]} 12. Nxd4 {[%clk 0:02:58.8]} 12... exd4
{[%clk 0:03:08.6]} 13. Ne4 {[%clk 0:03:00.1]} 13... c6 {[%clk 0:03:04.6]} 14.
Re1 {[%clk 0:02:56]} 14... h6 {[%clk 0:03:00.1]} 15. Nc5 {[%clk 0:02:54.5]}
15... Nd5 {[%clk 0:02:56.5]} 16. Qb3 {[%clk 0:02:51.8]} 16... b6 {[%clk
0:02:41.1]} 17. Na4 {[%clk 0:02:39.8]} 17... Bb7 {[%clk 0:01:57.2]} 18. Nc5
{[%clk 0:02:30.6]} 18... Bc8 {[%clk 0:01:56.7]} 19. Na4 {[%clk 0:02:31.5]} 19...
Qd7 {[%clk 0:01:51.8]} 20. e4 {[%clk 0:01:31.3]} 20... dxe3 {[%clk 0:01:51.8]}
21. Bxe3 {[%clk 0:01:29.5]} 21... Bb7 {[%clk 0:01:44.6]} 22. Bxd5 {[%clk
0:01:18]} 22... cxd5 {[%clk 0:01:43.5]} 23. d4 {[%clk 0:01:19.1]} 23... Rac8
{[%clk 0:01:29.8]} 24. Nc3 {[%clk 0:01:19.8]} 24... Re6 {[%clk 0:01:22.9]} 25.
Ne2 {[%clk 0:01:15.1]} 25... Rxc1 {[%clk 0:01:15.4]} 26. Rxc1 {[%clk 0:01:15.3]}
26... Rc6 {[%clk 0:01:16.2]} 27. Rxc6 {[%clk 0:01:11.8]} 27... Bxc6 {[%clk
0:01:17.3]} 28. Nf4 {[%clk 0:01:10.5]} 28... Bf6 {[%clk 0:01:01.5]} 29. Kg2
{[%clk 0:01:05.5]} 29... Kg7 {[%clk 0:01:01.8]} 30. h3 {[%clk 0:00:54.7]} 30...
Qf5 {[%clk 0:01:01.1]} 31. Qd3 {[%clk 0:00:52.9]} 31... Qd7 {[%clk 0:00:48.9]}
32. Qd2 {[%clk 0:00:48.1]} 32... h5 {[%clk 0:00:48.6]} 33. Nd3 {[%clk
0:00:46.4]} 33... Qe6 {[%clk 0:00:44.5]} 34. Nf4 {[%clk 0:00:39.1]} 34... Qe4+
{[%clk 0:00:44.9]} 35. f3 {[%clk 0:00:40.2]} 35... Qe8 {[%clk 0:00:40]} 36. g4
{[%clk 0:00:39.8]} 36... hxg4 {[%clk 0:00:40.4]} 37. hxg4 {[%clk 0:00:40.6]}
37... Qd7 {[%clk 0:00:36]} 38. Nd3 {[%clk 0:00:40.9]} 38... Kg8 {[%clk
0:00:31.4]} 39. Qf2 {[%clk 0:00:38.5]} 39... Qe6 {[%clk 0:00:25.8]} 40. Bf4
{[%clk 0:00:34.6]} 40... Be7 {[%clk 0:00:21.3]} 41. Ne5 {[%clk 0:00:31.9]} 41...
Be8 {[%clk 0:00:22.5]} 42. Qe3 {[%clk 0:00:29]} 42... f6 {[%clk 0:00:22.1]} 43.
Nd3 {[%clk 0:00:26.6]} 43... Qd7 {[%clk 0:00:18.5]} 44. g5 {[%clk 0:00:23.5]}
44... Bf7 {[%clk 0:00:12.4]} 45. gxf6 {[%clk 0:00:22.5]} 45... Bxf6 {[%clk
0:00:14.3]} 46. Be5 {[%clk 0:00:22.8]} 46... Qf5 {[%clk 0:00:11.4]} 47. Bxf6
{[%clk 0:00:23.5]} 47... Qxf6 {[%clk 0:00:13.3]} 48. Ne5 {[%clk 0:00:24.6]}
48... Kg7 {[%clk 0:00:13.3]} 49. Kg3 {[%clk 0:00:25.4]} 49... Qf5 {[%clk
0:00:13.5]} 50. Qf4 {[%clk 0:00:26]} 50... Kf6 {[%clk 0:00:13.3]} 51. Ng4+
{[%clk 0:00:19.9]} 51... Kg7 {[%clk 0:00:13.6]} 52. Qe5+ {[%clk 0:00:20.7]}
52... Qxe5+ {[%clk 0:00:14]} 53. Nxe5 {[%clk 0:00:17.6]} 53... Be8 {[%clk
0:00:09.7]} 54. Kf4 {[%clk 0:00:19]} 54... Kf6 {[%clk 0:00:11]} 55. Ng4+ {[%clk
0:00:19.2]} 55... Kg7 {[%clk 0:00:09.6]} 56. Kg5 {[%clk 0:00:20.7]} 56... Bd7
{[%clk 0:00:08]} 57. Ne5 {[%clk 0:00:22.1]} 57... Bf5 {[%clk 0:00:09.6]} 58. Nc6
{[%clk 0:00:22.8]} 58... a5 {[%clk 0:00:09.5]} 59. Ne7 {[%clk 0:00:23.7]} 59...
Bd3 {[%clk 0:00:08.7]} 60. Nxd5 {[%clk 0:00:24.3]} 60... b5 {[%clk 0:00:09]} 61.
Nf4 {[%clk 0:00:24.3]} 61... Bf5 {[%clk 0:00:08.7]} 62. d5 {[%clk 0:00:25.5]}
62... Kf7 {[%clk 0:00:10]} 63. d6 {[%clk 0:00:24.9]} 63... b4 {[%clk 0:00:11.4]}
64. axb4 {[%clk 0:00:24]} 64... axb4 {[%clk 0:00:13.3]} 65. Nxg6 {[%clk
0:00:23.1]} 65... Bc2 {[%clk 0:00:06.3]} 66. d7 {[%clk 0:00:17.9]} 1-0

[Event "*** Titled Tuesday Blitz"]
[Site "Chess.com"]
[Date "2019.10.01"]
[Round "3"]
[White "SCIM"]
[Black "Kozok"]
[Result "1-0"]
[WhiteElo "2502"]
[BlackElo "2301"]
[TimeControl "180+2"]
[EndTime "13:39:55 PDT"]
[Termination "SCIM won by resignation"]

1. d4 {[%clk 0:03:01.9]} 1... Nf6 {[%clk 0:02:59.6]} 2. c4 {[%clk 0:03:02.1]}
2... e6 {[%clk 0:03:01.1]} 3. Nc3 {[%clk 0:03:01.2]} 3... d5 {[%clk 0:03:01.6]}
4. cxd5 {[%clk 0:03:01.4]} 4... exd5 {[%clk 0:03:02.3]} 5. Bg5 {[%clk
0:03:01.1]} 5... Bb4 {[%clk 0:03:03.9]} 6. Nf3 {[%clk 0:03:00.1]} 6... h6 {[%clk
0:02:50.1]} 7. Bxf6 {[%clk 0:02:58.7]} 7... Qxf6 {[%clk 0:02:52]} 8. e3 {[%clk
0:02:59.9]} 8... O-O {[%clk 0:02:46]} 9. Bd3 {[%clk 0:02:53.2]} 9... Bg4 {[%clk
0:02:40.2]} 10. h3 {[%clk 0:02:47.3]} 10... Bh5 {[%clk 0:02:24.6]} 11. g4 {[%clk
0:02:44.7]} 11... Bg6 {[%clk 0:02:25]} 12. Ne5 {[%clk 0:02:45.2]} 12... Bxd3
{[%clk 0:02:06.5]} 13. Nxd3 {[%clk 0:02:45.1]} 13... Bxc3+ {[%clk 0:02:06.5]}
14. bxc3 {[%clk 0:02:47]} 14... Nd7 {[%clk 0:02:07]} 15. O-O {[%clk 0:02:35.7]}
15... Rae8 {[%clk 0:02:07]} 16. Nf4 {[%clk 0:02:27.7]} 16... c6 {[%clk
0:02:04.2]} 17. Ne2 {[%clk 0:02:24.2]} 17... Qh4 {[%clk 0:02:01.7]} 18. Kg2
{[%clk 0:02:22.3]} 18... f5 {[%clk 0:02:02.7]} 19. Ng3 {[%clk 0:02:18.1]} 19...
f4 {[%clk 0:01:55.1]} 20. exf4 {[%clk 0:02:18.5]} 20... Rxf4 {[%clk 0:01:57]}
21. Qd3 {[%clk 0:02:12.2]} 21... Ref8 {[%clk 0:01:55.1]} 22. Rae1 {[%clk
0:02:10.4]} 22... Qf6 {[%clk 0:01:52.3]} 23. f3 {[%clk 0:02:00.1]} 23... Qg5
{[%clk 0:01:32.4]} 24. Nh5 {[%clk 0:01:48]} 24... R4f7 {[%clk 0:01:32.7]} 25. f4
{[%clk 0:01:45.9]} 25... Qh4 {[%clk 0:01:31.1]} 26. Qg3 {[%clk 0:01:44.4]} 26...
Qd8 {[%clk 0:01:31.7]} 27. f5 {[%clk 0:01:44.2]} 27... Nf6 {[%clk 0:01:29.5]}
28. Nxf6+ {[%clk 0:01:43.8]} 28... Qxf6 {[%clk 0:01:27.2]} 29. Re6 {[%clk
0:01:38.5]} 29... Qg5 {[%clk 0:01:14.9]} 30. Qf4 {[%clk 0:01:24.2]} 30... Qd8
{[%clk 0:01:15.9]} 31. Rfe1 {[%clk 0:01:19]} 31... Qa5 {[%clk 0:01:10.6]} 32.
Qd2 {[%clk 0:01:15.1]} 32... c5 {[%clk 0:01:11.7]} 33. dxc5 {[%clk 0:01:06.2]}
33... Qxc5 {[%clk 0:01:13.6]} 34. Re8 {[%clk 0:01:04.9]} 34... Qc6 {[%clk
0:01:06.1]} 35. Rxf8+ {[%clk 0:01:02.5]} 35... Rxf8 {[%clk 0:01:07.6]} 36. Qd4
{[%clk 0:01:03.4]} 36... Rc8 {[%clk 0:01:05.2]} 37. a4 {[%clk 0:00:53.8]} 37...
Qxc3 {[%clk 0:01:01.1]} 38. Qxd5+ {[%clk 0:00:45]} 38... Kh7 {[%clk 0:00:59.5]}
39. Re2 {[%clk 0:00:41.2]} 39... Qc6 {[%clk 0:00:35]} 40. Qxc6 {[%clk
0:00:41.8]} 40... Rxc6 {[%clk 0:00:36.9]} 41. Re7 {[%clk 0:00:41.6]} 41... Kg8
{[%clk 0:00:18.3]} 42. Rxb7 {[%clk 0:00:40.5]} 42... a6 {[%clk 0:00:18.6]} 43.
Rb4 {[%clk 0:00:38.3]} 43... Rc3 {[%clk 0:00:19.1]} 44. Re4 {[%clk 0:00:38.3]}
44... Kf7 {[%clk 0:00:20]} 45. Rd4 {[%clk 0:00:38]} 45... Rc5 {[%clk 0:00:20]}
46. Kg3 {[%clk 0:00:33.9]} 46... a5 {[%clk 0:00:18.9]} 47. Kf4 {[%clk
0:00:32.8]} 47... Rc3 {[%clk 0:00:19]} 48. h4 {[%clk 0:00:33.5]} 48... Ra3
{[%clk 0:00:19.7]} 49. Rc4 {[%clk 0:00:34.2]} 49... Ra1 {[%clk 0:00:20.8]} 50.
g5 {[%clk 0:00:33.8]} 50... hxg5+ {[%clk 0:00:21.9]} 51. hxg5 {[%clk 0:00:35.2]}
51... Ke7 {[%clk 0:00:23.3]} 52. Ke5 {[%clk 0:00:29.5]} 52... Re1+ {[%clk
0:00:21.8]} 53. Re4 {[%clk 0:00:30.3]} 53... Ra1 {[%clk 0:00:22.2]} 54. Kd5+
{[%clk 0:00:30.3]} 54... Kd7 {[%clk 0:00:23.8]} 55. f6 {[%clk 0:00:21.6]} 55...
gxf6 {[%clk 0:00:20.1]} 56. gxf6 {[%clk 0:00:23.5]} 56... Rf1 {[%clk 0:00:18.3]}
57. Re7+ {[%clk 0:00:24]} 57... Kd8 {[%clk 0:00:19.2]} 58. Ke6 {[%clk
0:00:24.8]} 58... Rf4 {[%clk 0:00:19.7]} 59. Ra7 {[%clk 0:00:20.4]} 59... Re4+
{[%clk 0:00:19.4]} 60. Kf5 {[%clk 0:00:20.7]} 60... Re1 {[%clk 0:00:18.2]} 61.
f7 {[%clk 0:00:20.9]} 61... Rf1+ {[%clk 0:00:19.8]} 62. Kg6 {[%clk 0:00:21.7]}
62... Rg1+ {[%clk 0:00:20.9]} 63. Kf6 {[%clk 0:00:22.7]} 63... Rf1+ {[%clk
0:00:22.3]} 64. Ke6 {[%clk 0:00:23.8]} 64... Re1+ {[%clk 0:00:23.5]} 65. Kd6
{[%clk 0:00:20.6]} 65... Rd1+ {[%clk 0:00:22.9]} 66. Kc6 {[%clk 0:00:17.9]}
66... Rc1+ {[%clk 0:00:23.2]} 67. Kb6 {[%clk 0:00:17.5]} 67... Rb1+ {[%clk
0:00:08.5]} 68. Kxa5 {[%clk 0:00:18.1]} 68... Rf1 {[%clk 0:00:08.9]} 69. Ra8+
{[%clk 0:00:14.5]} 69... Ke7 {[%clk 0:00:08.4]} 70. f8=Q+ {[%clk 0:00:15.6]}
70... Rxf8 {[%clk 0:00:08.6]} 71. Rxf8 {[%clk 0:00:17.5]} 71... Kxf8 {[%clk
0:00:10.5]} 72. Kb6 {[%clk 0:00:19]} 72... Ke7 {[%clk 0:00:12.4]} 73. Kb7 {[%clk
0:00:20.6]} 73... Kd6 {[%clk 0:00:14]} 74. a5 {[%clk 0:00:22.2]} 74... Kc5
{[%clk 0:00:15.8]} 1-0

[Event "*** Titled Tuesday Blitz"]
[Site "Chess.com"]
[Date "2019.10.01"]
[Round "3"]
[White "FrenchMonster2002"]
[Black "Bagirova"]
[Result "0-1"]
[WhiteElo "2392"]
[BlackElo "2093"]
[TimeControl "180+2"]
[EndTime "13:40:09 PDT"]
[Termination "Bagirova won by checkmate"]

1. e4 {[%clk 0:03:01.9]} 1... c5 {[%clk 0:02:53.7]} 2. Nc3 {[%clk 0:03:00.8]}
2... Nc6 {[%clk 0:02:53.5]} 3. Bb5 {[%clk 0:03:01.7]} 3... d6 {[%clk 0:02:53.7]}
4. Bxc6+ {[%clk 0:03:01.4]} 4... bxc6 {[%clk 0:02:52.5]} 5. f4 {[%clk
0:03:02.3]} 5... g6 {[%clk 0:02:50.2]} 6. Nf3 {[%clk 0:03:02.9]} 6... Bg7 {[%clk
0:02:51.4]} 7. O-O {[%clk 0:03:04.4]} 7... Nf6 {[%clk 0:02:50.9]} 8. d3 {[%clk
0:03:03.8]} 8... O-O {[%clk 0:02:52]} 9. Qe1 {[%clk 0:03:04]} 9... Nd7 {[%clk
0:02:47.6]} 10. Qh4 {[%clk 0:02:59.5]} 10... e5 {[%clk 0:02:39]} 11. Ng5 {[%clk
0:02:30]} 11... h6 {[%clk 0:02:38]} 12. fxe5 {[%clk 0:02:20.8]} 12... hxg5
{[%clk 0:02:23.3]} 13. Bxg5 {[%clk 0:02:22.7]} 13... f6 {[%clk 0:02:24.4]} 14.
exf6 {[%clk 0:02:09.3]} 14... Bxf6 {[%clk 0:02:23.6]} 15. Rxf6 {[%clk
0:01:56.5]} 15... Rxf6 {[%clk 0:02:18.6]} 16. e5 {[%clk 0:01:49.7]} 16... dxe5
{[%clk 0:01:16.2]} 17. Ne4 {[%clk 0:01:48.5]} 17... Rf4 {[%clk 0:01:02.9]} 18.
Qxf4 {[%clk 0:01:18.6]} 18... exf4 {[%clk 0:01:02.5]} 19. Bxd8 {[%clk
0:01:20.5]} 19... Ba6 {[%clk 0:00:59.1]} 20. Bg5 {[%clk 0:01:18.2]} 20... c4
{[%clk 0:00:58.8]} 21. dxc4 {[%clk 0:01:15.1]} 21... Bxc4 {[%clk 0:00:59.8]} 22.
Bxf4 {[%clk 0:01:15.5]} 22... Rf8 {[%clk 0:00:58.6]} 23. g3 {[%clk 0:01:11.6]}
23... Bd5 {[%clk 0:00:52.6]} 24. Re1 {[%clk 0:01:10]} 24... Re8 {[%clk
0:00:51.4]} 25. Be5 {[%clk 0:00:13.9]} 25... Bxe4 {[%clk 0:00:40.3]} 26. Rxe4
{[%clk 0:00:14.3]} 26... Rxe5 {[%clk 0:00:39.9]} 27. Ra4 {[%clk 0:00:15.7]}
27... Re1+ {[%clk 0:00:38.8]} 28. Kf2 {[%clk 0:00:16.7]} 28... Rc1 {[%clk
0:00:39.5]} 29. Rc4 {[%clk 0:00:16.4]} 29... Ne5 {[%clk 0:00:39.1]} 30. Rc3
{[%clk 0:00:13.5]} 30... Kf7 {[%clk 0:00:37.9]} 31. Ke3 {[%clk 0:00:13.7]} 31...
Ke6 {[%clk 0:00:38.1]} 32. Kd4 {[%clk 0:00:12.2]} 32... Rd1+ {[%clk 0:00:37.2]}
33. Kc5 {[%clk 0:00:12.3]} 33... Rd5+ {[%clk 0:00:38.6]} 34. Kb4 {[%clk
0:00:12.4]} 34... Rb5+ {[%clk 0:00:38.5]} 35. Ka3 {[%clk 0:00:14]} 35... a5
{[%clk 0:00:38.4]} 36. b3 {[%clk 0:00:14.8]} 36... Rd5 {[%clk 0:00:38.3]} 37.
Ka4 {[%clk 0:00:14]} 37... Kd6 {[%clk 0:00:33.9]} 38. Re3 {[%clk 0:00:12.5]}
38... Rd2 {[%clk 0:00:31.4]} 39. Rc3 {[%clk 0:00:09.4]} 39... Rxh2 {[%clk
0:00:31.6]} 40. Kxa5 {[%clk 0:00:09.7]} 40... Rf2 {[%clk 0:00:32.4]} 41. a4
{[%clk 0:00:09.8]} 41... Rf3 {[%clk 0:00:33.6]} 42. Rxf3 {[%clk 0:00:11]} 42...
Nxf3 {[%clk 0:00:34.8]} 43. Kb6 {[%clk 0:00:12.9]} 43... Nd4 {[%clk 0:00:33.5]}
44. a5 {[%clk 0:00:11.4]} 44... Nb5 {[%clk 0:00:34.7]} 45. a6 {[%clk 0:00:09.5]}
45... Nc7 {[%clk 0:00:32]} 46. a7 {[%clk 0:00:07.9]} 46... Kd7 {[%clk
0:00:28.7]} 47. Kb7 {[%clk 0:00:08.5]} 47... c5 {[%clk 0:00:29.3]} 48. g4 {[%clk
0:00:06.5]} 48... g5 {[%clk 0:00:29.6]} 49. c4 {[%clk 0:00:04]} 49... Kd6 {[%clk
0:00:29.8]} 50. a8=Q {[%clk 0:00:03]} 50... Nxa8 {[%clk 0:00:29.7]} 51. Kxa8
{[%clk 0:00:04.9]} 51... Ke5 {[%clk 0:00:30.6]} 52. Kb7 {[%clk 0:00:05]} 52...
Kf4 {[%clk 0:00:31.3]} 53. Kc6 {[%clk 0:00:06.7]} 53... Kxg4 {[%clk 0:00:32.7]}
54. Kxc5 {[%clk 0:00:08.6]} 54... Kh3 {[%clk 0:00:31.8]} 55. b4 {[%clk
0:00:06.7]} 55... g4 {[%clk 0:00:33.1]} 56. b5 {[%clk 0:00:08.2]} 56... g3
{[%clk 0:00:34.4]} 57. b6 {[%clk 0:00:09.8]} 57... g2 {[%clk 0:00:36]} 58. b7
{[%clk 0:00:10.9]} 58... g1=Q+ {[%clk 0:00:37]} 59. Kc6 {[%clk 0:00:12.2]} 59...
Qa7 {[%clk 0:00:34.9]} 60. Kc7 {[%clk 0:00:08.9]} 60... Qc5+ {[%clk 0:00:35.7]}
61. Kd8 {[%clk 0:00:06.8]} 61... Qd6+ {[%clk 0:00:35.9]} 62. Kc8 {[%clk
0:00:08.3]} 62... Qc6+ {[%clk 0:00:37.4]} 63. Kb8 {[%clk 0:00:09.3]} 63... Qxc4
{[%clk 0:00:37.9]} 64. Ka7 {[%clk 0:00:09.2]} 64... Qa4+ {[%clk 0:00:38.6]} 65.
Kb6 {[%clk 0:00:10.6]} 65... Qb4+ {[%clk 0:00:39.7]} 66. Ka7 {[%clk 0:00:11.6]}
66... Qa5+ {[%clk 0:00:40.3]} 67. Kb8 {[%clk 0:00:13.1]} 67... Kg4 {[%clk
0:00:41.5]} 68. Kc8 {[%clk 0:00:13]} 68... Qc5+ {[%clk 0:00:42.9]} 69. Kb8
{[%clk 0:00:13.4]} 69... Kf5 {[%clk 0:00:42.8]} 70. Ka8 {[%clk 0:00:15.3]} 70...
Qa5+ {[%clk 0:00:43.1]} 71. Kb8 {[%clk 0:00:16.8]} 71... Ke6 {[%clk 0:00:44.5]}
72. Kc8 {[%clk 0:00:18.4]} 72... Qc5+ {[%clk 0:00:43.4]} 73. Kd8 {[%clk
0:00:18.9]} 73... Qb6+ {[%clk 0:00:44.4]} 74. Kc8 {[%clk 0:00:20.3]} 74... Qc6+
{[%clk 0:00:45.9]} 75. Kd8 {[%clk 0:00:21]} 75... Qxb7 {[%clk 0:00:45.5]} 76.
Ke8 {[%clk 0:00:21.4]} 76... Qe7# {[%clk 0:00:46.9]} 0-1

[Event "*** Titled Tuesday Blitz"]
[Site "Chess.com"]
[Date "2019.10.01"]
[Round "3"]
[White "Sanan_Sjugirov"]
[Black "AminMolaei"]
[Result "1-0"]
[WhiteElo "2953"]
[BlackElo "2692"]
[TimeControl "180+2"]
[EndTime "13:40:22 PDT"]
[Termination "Sanan_Sjugirov won by resignation"]

1. e4 {[%clk 0:03:01.9]} 1... e5 {[%clk 0:03:01]} 2. Nf3 {[%clk 0:03:02.2]} 2...
Nc6 {[%clk 0:03:02.5]} 3. Bb5 {[%clk 0:03:02.8]} 3... a6 {[%clk 0:03:03.8]} 4.
Ba4 {[%clk 0:03:03.8]} 4... Nf6 {[%clk 0:03:05.2]} 5. O-O {[%clk 0:03:03.7]}
5... b5 {[%clk 0:03:06.6]} 6. Bb3 {[%clk 0:03:04.1]} 6... Bc5 {[%clk 0:03:08.5]}
7. d3 {[%clk 0:02:57.8]} 7... O-O {[%clk 0:03:06.8]} 8. Nc3 {[%clk 0:02:55.8]}
8... d6 {[%clk 0:03:02.8]} 9. a4 {[%clk 0:02:54.2]} 9... Na5 {[%clk 0:03:03.2]}
10. Ba2 {[%clk 0:02:34.4]} 10... b4 {[%clk 0:03:04.1]} 11. Nd5 {[%clk
0:02:35.1]} 11... Nxd5 {[%clk 0:03:02.4]} 12. Bxd5 {[%clk 0:02:35.9]} 12... c6
{[%clk 0:03:03.2]} 13. Ba2 {[%clk 0:02:34.6]} 13... Bb6 {[%clk 0:03:03.8]} 14.
c3 {[%clk 0:02:18.1]} 14... bxc3 {[%clk 0:03:04.4]} 15. bxc3 {[%clk 0:02:20]}
15... Bg4 {[%clk 0:03:01.6]} 16. h3 {[%clk 0:02:18.1]} 16... Bh5 {[%clk
0:03:02.1]} 17. Rb1 {[%clk 0:02:12.1]} 17... Rb8 {[%clk 0:03:02.6]} 18. Bd2
{[%clk 0:01:59.5]} 18... Nb7 {[%clk 0:03:00.8]} 19. g4 {[%clk 0:01:39.2]} 19...
Bg6 {[%clk 0:03:01.6]} 20. h4 {[%clk 0:01:39.2]} 20... h5 {[%clk 0:02:59.9]} 21.
Ng5 {[%clk 0:01:36.6]} 21... Nc5 {[%clk 0:02:29.6]} 22. gxh5 {[%clk 0:01:34.4]}
22... Bh7 {[%clk 0:02:30.9]} 23. Qf3 {[%clk 0:01:19]} 23... Qe7 {[%clk
0:02:31.3]} 24. Qg3 {[%clk 0:01:07.3]} 24... Kh8 {[%clk 0:02:18.1]} 25. a5
{[%clk 0:01:03.2]} 25... Bc7 {[%clk 0:02:12.4]} 26. Rxb8 {[%clk 0:01:03.9]}
26... Bxb8 {[%clk 0:02:14.3]} 27. Kh1 {[%clk 0:00:53]} 27... Bg8 {[%clk
0:02:13.9]} 28. Nh3 {[%clk 0:00:37.4]} 28... d5 {[%clk 0:02:11.8]} 29. Rg1
{[%clk 0:00:33.2]} 29... f5 {[%clk 0:02:12.8]} 30. h6 {[%clk 0:00:30.2]} 30...
Ne6 {[%clk 0:01:46]} 31. exd5 {[%clk 0:00:26.7]} 31... e4 {[%clk 0:01:35.5]} 32.
Qg6 {[%clk 0:00:22.7]} 32... Rf6 {[%clk 0:01:32.3]} 33. Qg2 {[%clk 0:00:10]}
33... cxd5 {[%clk 0:01:24.7]} 34. Bxd5 {[%clk 0:00:11.9]} 34... g6 {[%clk
0:01:26.1]} 35. dxe4 {[%clk 0:00:10.9]} 35... fxe4 {[%clk 0:01:26.9]} 36. Bxe4
{[%clk 0:00:10.7]} 36... Qd6 {[%clk 0:01:20]} 37. Be3 {[%clk 0:00:10.1]} 37...
Bf7 {[%clk 0:01:08.1]} 38. Ng5 {[%clk 0:00:11]} 38... Nxg5 {[%clk 0:01:07.7]}
39. hxg5 {[%clk 0:00:11.9]} 39... Re6 {[%clk 0:01:07.4]} 40. Bd4+ {[%clk
0:00:12.8]} 40... Kh7 {[%clk 0:01:08.7]} 41. f3 {[%clk 0:00:10]} 41... Qf4
{[%clk 0:01:05.9]} 42. Bf2 {[%clk 0:00:10.9]} 42... Be5 {[%clk 0:00:16.4]} 43.
Qh3 {[%clk 0:00:07]} 43... Rd6 {[%clk 0:00:13.4]} 44. Bd4 {[%clk 0:00:05.4]}
44... Bxd4 {[%clk 0:00:12.4]} 45. cxd4 {[%clk 0:00:07.3]} 45... Rxd4 {[%clk
0:00:14.1]} 46. Qg3 {[%clk 0:00:08]} 46... Qxg3 {[%clk 0:00:06.6]} 47. Rxg3
{[%clk 0:00:09.9]} 47... Ra4 {[%clk 0:00:08.2]} 48. Rg1 {[%clk 0:00:10.3]} 48...
Rxa5 {[%clk 0:00:09.5]} 49. Kh2 {[%clk 0:00:11.7]} 49... Rc5 {[%clk 0:00:08.9]}
50. Kh3 {[%clk 0:00:11.6]} 50... a5 {[%clk 0:00:10.3]} 51. Kh4 {[%clk
0:00:11.6]} 51... a4 {[%clk 0:00:11.5]} 52. Rd1 {[%clk 0:00:12.4]} 52... Rc7
{[%clk 0:00:09.6]} 53. Ra1 {[%clk 0:00:10.5]} 53... Bb3 {[%clk 0:00:10.2]} 54.
Kg4 {[%clk 0:00:10.3]} 54... Rc4 {[%clk 0:00:05.9]} 55. Kf4 {[%clk 0:00:10.9]}
55... Rb4 {[%clk 0:00:05.3]} 56. Ke3 {[%clk 0:00:09.6]} 56... Rb5 {[%clk
0:00:06.1]} 57. Rc1 {[%clk 0:00:10.2]} 57... a3 {[%clk 0:00:05.5]} 58. Rc7+
{[%clk 0:00:11]} 58... Kg8 {[%clk 0:00:05.3]} 59. Rc8+ {[%clk 0:00:10.6]} 59...
Kh7 {[%clk 0:00:04.8]} 60. Rc7+ {[%clk 0:00:11.9]} 60... Kg8 {[%clk 0:00:04.7]}
61. Bxg6 {[%clk 0:00:12.2]} 61... Rb8 {[%clk 0:00:04.9]} 62. Rg7+ {[%clk
0:00:11.6]} 62... Kh8 {[%clk 0:00:05.6]} 63. Rh7+ {[%clk 0:00:13]} 63... Kg8
{[%clk 0:00:07.1]} 64. Ra7 {[%clk 0:00:14.9]} 64... a2 {[%clk 0:00:08]} 65. f4
{[%clk 0:00:14.3]} 65... Bd5 {[%clk 0:00:05.1]} 66. f5 {[%clk 0:00:14.3]} 66...
Ra8 {[%clk 0:00:05]} 67. Bf7+ {[%clk 0:00:13.5]} 67... Kh8 {[%clk 0:00:04.4]}
68. Rxa8+ {[%clk 0:00:14.6]} 68... Bxa8 {[%clk 0:00:05.3]} 69. Bxa2 {[%clk
0:00:16.2]} 69... Kh7 {[%clk 0:00:05.9]} 70. Kf4 {[%clk 0:00:17.6]} 1-0